fUST/lending_fUST_20240320
["ID","MTS","AMOUNT","RATE_DAILY","PERIOD"]
[319565530,1710865846100,-555.51237389,0.00226026,120]
[319565531,1710865846112,-500.0,0.00226026,120]
[319565533,1710865846122,-500.0,0.00226026,120]
[319565535,1710865846132,-7217.67,0.00226026,120]
[319565537,1710865846142,-576.11,0.00226026,60]
[319565538,1710865846152,-500.0,0.00226026,120]
[319565540,1710865846162,-556.85841167,0.00226026,120]
[319565542,1710865846172,-500.0,0.00226026,120]
[319565544,1710865846183,-3691.97,0.00226026,120]
[319565546,1710865846193,-2470.16,0.00226026,120]
[319565547,1710865846205,-151.0,0.00226026,120]
[319565548,1710865846216,-500.0,0.00226026,120]
[319565549,1710865846230,-500.0,0.00226026,120]
[319565550,1710865846241,-4166.62,0.00226026,120]
[319565551,1710865846251,-749.66,0.00226026,120]
[319565552,1710865846261,-6242.18,0.00226026,120]
[319565553,1710865846271,-500.0,0.00226026,120]
[319565555,1710865846282,-500.0,0.00226026,120]
[319565556,1710865846293,-500.0,0.00226026,120]
[319565557,1710865846304,-500.0,0.00226026,120]
[319565558,1710865846317,-772.21,0.00226026,120]
[319565559,1710865846328,-500.0,0.00226026,120]
[319565561,1710865846338,-500.0,0.00226026,120]
[319565562,1710865846348,-500.0,0.00226026,120]
[319565563,1710865846358,-500.0,0.00226026,120]
[319565565,1710865846368,-1003.88,0.00226026,120]
[319565566,1710865846378,-500.0,0.00226986,120]
[319565567,1710865846389,-500.0,0.00226986,120]
[319565569,1710865846399,-611.01,0.00226986,10]
[319565571,1710865846409,-500.0,0.00226986,120]
[319565573,1710865846425,-500.0,0.00226986,120]
[319565574,1710865846435,-1028.01,0.00226986,120]
[319565575,1710865846447,-1000.14,0.00226986,120]
[319565576,1710865846457,-500.0,0.00226986,120]
[319565577,1710865846469,-500.0,0.00226986,120]
[319565578,1710865846485,-673.51,0.00226986,120]
[319565579,1710865846496,-543.26333534,0.00226986,120]
[319565580,1710865846509,-500.0,0.00226986,120]
[319565581,1710865846519,-500.0,0.00226986,120]
[319565582,1710865846531,-500.0,0.00226986,120]
[319565583,1710865846543,-500.0,0.00226986,120]
[319565584,1710865846555,-500.0,0.00226986,120]
[319565585,1710865846566,-500.0,0.00226986,120]
[319565586,1710865846578,-500.0,0.00226986,120]
[319565587,1710865846590,-500.0,0.00226986,120]
[319565588,1710865846601,-2188.19,0.00232985,120]
[319565589,1710865846613,-500.0,0.00232985,120]
[319565590,1710865846624,-201.2320405,0.00240425,120]
[319565591,1710865846636,-201.2320405,0.00240425,120]
[319565592,1710865846648,-201.2320405,0.00240425,120]
[319565593,1710865846660,-201.2320405,0.00240425,120]
[319565594,1710865846672,-20000.0,0.00244716,120]
[319565595,1710865846684,-1123.07,0.00246575,120]
[319565596,1710865846695,-1203.18,0.00246575,120]
[319565597,1710865846707,-500.0,0.00246575,120]
[319565598,1710865846719,-500.0,0.00246575,120]
[319565599,1710865846738,-500.0,0.00246575,14]
[319565600,1710865846751,-500.0,0.00246575,120]
[319565601,1710865846763,-817.06,0.00246575,120]
[319565602,1710865846775,-500.0,0.00246575,120]
[319565603,1710865846788,-652.5,0.00246575,120]
[319565604,1710865846801,-500.0,0.00246575,120]
[319565605,1710865846813,-1155.58,0.00246575,120]
[319565606,1710865846825,-877.25,0.00246575,120]
[319565607,1710865846837,-500.0,0.00246575,120]
[319565608,1710865846849,-500.0,0.00246575,120]
[319565609,1710865846861,-500.0,0.00246575,120]
[319565610,1710865846873,-1000.0,0.0025,120]
[319565611,1710865846885,-10000.0,0.0025,120]
[319565612,1710865846897,-6006.84,0.00257282,120]
[319565613,1710865846911,-29999.92111871,0.00278,120]
[319565614,1710865846923,-172.0,0.00279774,120]
[319565615,1710865846937,-156.98429157,0.00289,120]
[319565616,1710865846952,-20000.0,0.00297735,120]
[319565617,1710865846966,-25000.0,0.00298,71]
[319565618,1710865846984,-464170.28862808,0.00298,120]
[319565619,1710865847662,-284.1,0.0006,4]
[319565621,1710865847971,-9424.11866104,0.0006,4]
[319565622,1710865847988,-500.0,0.00082191,120]
[319565623,1710865848088,-500.0,0.00082191,120]
[319565624,1710865848099,-500.0,0.00082191,120]
[319565625,1710865848109,-1352.72,0.00088998,120]
[319565626,1710865848120,-500.0,0.00219178,120]
[319565627,1710865848131,-500.0,0.00219178,120]
[319565628,1710865848141,-499.9079687,0.00219178,120]
[319565629,1710865848152,-50489.28643129,0.00298,120]
[319565630,1710865848401,-338.03267437,0.00082191,120]
[319565631,1710865848411,-719.33703063,0.00082191,120]
[319565632,1710865865182,798.15127825,0.00019,2]
[319565633,1710865926454,154.86062544,0.00019,2]
[319565634,1710865937718,330.17589463,0.00024266,2]
[319565635,1710865942949,154.86062544,0.00019,2]
[319565636,1710866002442,242.41168236,0.000187,2]
[319565637,1710866021153,10209.9800687,0.00028,2]
[319565646,1710866165173,361.06702369,0.00019,2]
[319565647,1710866205971,154.86062544,0.00019,2]
[319565648,1710866261694,322.82432661,0.00028,2]
[319565649,1710866290857,5166.41395051,0.0001881,2]
[319565650,1710866299270,-154.86062544,0.00028009,2]
[319565651,1710866299294,-269.50049414,0.00028009,2]
[319565652,1710866299325,-154.86062544,0.00028009,2]
[319565653,1710866299352,-154.86062544,0.0002801,2]
[319565654,1710866299379,-154.86062544,0.0002801,2]
[319565655,1710866299403,-405.07209328,0.00028011,2]
[319565656,1710866299429,-616.84182065,0.00028012,2]
[319565657,1710866299457,-154.86062544,0.00028013,2]
[319565658,1710866299481,-599.69760089,0.00028013,2]
[319565659,1710866299506,-154.86062544,0.00028013,2]
[319565660,1710866299532,-319.17003147,0.00028014,2]
[319565662,1710866303364,154.86062544,0.00028008,2]
[319565663,1710866304883,5166.41395051,0.0001881,2]
[319565664,1710866326891,5166.41395051,0.00018622,2]
[319565665,1710866344875,5166.41395051,0.00018622,2]
[319565666,1710866360873,3030.68554412,0.00018622,2]
[319565667,1710866514883,-154.86062544,0.00030614,4]
[319565668,1710866514902,-1231.80687252,0.00030615,4]
[319565669,1710866514921,-917.73958967,0.00034364,4]
[319565670,1710866514940,-829.14944735,0.00034365,4]
[319565671,1710866514960,-979.27524665,0.00034378,4]
[319565672,1710866514980,-276.33349856,0.00043651,4]
[319565673,1710866514999,-204.98847702,0.00043652,4]
[319565674,1710866515018,-467.75717742,0.00043653,4]
[319565675,1710866515037,-262.67293838,0.00043653,4]
[319565676,1710866515056,-1239.34612194,0.00043654,4]
[319565677,1710866515076,-154.86062544,0.00043654,4]
[319565678,1710866515096,-509.34267128,0.00043655,4]
[319565679,1710866515116,-184.74281357,0.00043655,4]
[319565680,1710866515136,-154.86062544,0.00043657,4]
[319565681,1710866515168,-367.16265237,0.00043658,4]
[319565682,1710866526556,161.01454116,0.00043649,4]
[319565683,1710866530439,154.86062544,0.00043649,4]
[319565685,1710866576908,-620.17092113,0.00030617,2]
[319565686,1710866576928,-620.00854606,0.00032147,2]
[319565687,1710866576947,-620.0004273,0.00033755,2]
[319565688,1710866576967,-400.0,0.00043647,2]
[319565689,1710866576986,-820.27278706,0.00043648,4]
[319565690,1710866577005,-154.86062544,0.00043649,4]
[319565691,1710866577027,-154.86062544,0.0004365,2]
[319565692,1710866577046,-1495.4840194,0.0004365,4]
[319565693,1710866577066,-114.34204817,0.00043659,2]
[319565694,1710866602801,-200.79059265,0.00045934,30]
[319565695,1710866602822,-154.0,0.00047931,30]
[319565696,1710866602843,-154.0,0.00048205,30]
[319565697,1710866602863,-152.0,0.00048479,30]
[319565698,1710866602883,-152.0,0.00048753,30]
[319565699,1710866609727,1606.53510525,0.00043658,60]
[319565700,1710866641074,-2108.63755143,0.00043659,2]
[319565701,1710866641094,-675.047031,0.00045523,2]
[319565702,1710866641114,-2216.31541757,0.00045945,2]
[319565704,1710866754134,-621.99169794,0.00045943,4]
[319565705,1710866754157,-154.86062544,0.00045944,4]
[319565706,1710866754176,-105.63720882,0.00045945,2]
[319565723,1710866834375,3980.0,0.000285,2]
[319565724,1710866838862,313.8109639,0.00028197,2]
[319565752,1710866846329,174.0,0.00021,2]
[319565758,1710866946178,-313.8109639,0.00030601,7]
[319565759,1710866946200,-315.15290382,0.0004,120]
[319565760,1710866946221,-152.0,0.0004853,30]
[319565761,1710866946242,-152.0,0.00048804,30]
[319565762,1710866946265,-2320.8456554,0.00048911,2]
[319565763,1710866946292,-154.0,0.00049078,30]
[319565764,1710866946320,-166.666666,0.00050019,2]
[319565765,1710866946342,-271.1554492,0.00050122,2]
[319565766,1710866946364,-250.0,0.00050193,2]
[319565767,1710866946387,-166.666666,0.00051382,2]
[319565768,1710866946407,-1016.78418289,0.00052083,30]
[319565769,1710866946428,-2000.0,0.00052093,50]
[319565770,1710866946450,-2000.0,0.00052304,50]
[319565771,1710866946473,-2000.0,0.00052516,50]
[319565772,1710866946500,-3262.83932,0.00052728,50]
[319565773,1710866946522,-166.666666,0.00052746,2]
[319565774,1710866946543,-166.666666,0.0005411,2]
[319565775,1710866946566,-367.16265237,0.00055472,4]
[319565776,1710866946587,-166.666666,0.00055473,2]
[319565777,1710866946608,-24900.0,0.0005655,2]
[319565778,1710866946630,-154.86062544,0.00056619,4]
[319565779,1710866946650,-467.75717742,0.0005662,4]
[319565780,1710866946673,-313.8109639,0.00056621,120]
[319565781,1710866946694,-381.92699789,0.00056706,4]
[319565782,1710866946715,-166.666666,0.00056837,2]
[319565783,1710866946736,-154.86062544,0.00064992,7]
[319565784,1710866946759,-922.80688544,0.00064993,7]
[319565785,1710866946782,-695.49392365,0.00064999,7]
[319565786,1710866946806,-371.03048739,0.00065929,7]
[319565787,1710866946827,-1655.35808423,0.0006593,7]
[319565788,1710866946849,-1909.75594942,0.0006593,7]
[319565789,1710866946872,-159.800973,0.00065931,2]
[319565790,1710866946894,-2181.35918814,0.00068996,7]
[319565791,1710866946915,-1106.35271355,0.00068996,7]
[319565792,1710866946936,-4996.27861196,0.00068996,7]
[319565793,1710866946963,-1395.279328,0.00069511,7]
[319565794,1710866946985,-745.42948183,0.00069513,7]
[319565795,1710866947006,-5389.0,0.0007,120]
[319565796,1710866947028,-155.17411374,0.00070217,7]
[319565797,1710866947055,-228.53498416,0.00070217,7]
[319565798,1710866947076,-1569.60958846,0.00070217,7]
[319565799,1710866947097,-312.98118137,0.00070217,4]
[319565800,1710866947118,-155.05182361,0.00070217,7]
[319565801,1710866947139,-218.2189913,0.00070217,7]
[319565802,1710866947161,-20000.0,0.00074299,120]
[319565803,1710866947183,-204.09467332,0.00076,120]
[319565804,1710866947205,-155.41884066,0.00076829,7]
[319565805,1710866947228,-199.64185817,0.00078216,2]
[319565806,1710866947249,-868.14312116,0.00078295,7]
[319565807,1710866947271,-202.84155287,0.00078296,120]
[319565808,1710866947292,-264.64293732,0.00078296,120]
[319565809,1710866947318,-500.0,0.00078296,120]
[319565810,1710866947340,-500.0,0.00078296,120]
[319565811,1710866947361,-500.0,0.00078296,120]
[319565812,1710866947386,-500.0,0.00078296,120]
[319565813,1710866947409,-500.0,0.00078296,120]
[319565814,1710866947430,-500.0,0.00078296,120]
[319565816,1710866947452,-500.0,0.00078296,120]
[319565818,1710866947476,-500.0,0.00078296,120]
[319565819,1710866947497,-500.0,0.00078296,120]
[319565820,1710866947521,-500.0,0.00078296,120]
[319565821,1710866947543,-500.0,0.00078296,120]
[319565822,1710866947566,-500.0,0.00078296,120]
[319565823,1710866947587,-500.0,0.00078296,120]
[319565824,1710866947612,-500.0,0.00078296,120]
[319565825,1710866947633,-500.0,0.00078296,120]
[319565826,1710866947653,-500.0,0.00078296,120]
[319565827,1710866947773,-500.0,0.00078296,120]
[319565828,1710866947797,-500.0,0.00078296,120]
[319565829,1710866947822,-500.0,0.00078296,120]
[319565830,1710866947845,-500.0,0.00078296,120]
[319565831,1710866947866,-500.0,0.00078296,120]
[319565832,1710866947887,-500.0,0.00078296,120]
[319565833,1710866947909,-500.0,0.00078296,120]
[319565834,1710866947930,-500.0,0.00078296,120]
[319565835,1710866947951,-500.0,0.00078296,120]
[319565836,1710866947972,-500.0,0.00078296,120]
[319565837,1710866947993,-500.0,0.00078296,120]
[319565838,1710866948014,-500.0,0.00078296,120]
[319565839,1710866948035,-530.89755878,0.00078296,120]
[319565840,1710866948061,-500.0,0.00078296,120]
[319565841,1710866948083,-500.0,0.00078296,120]
[319565842,1710866948104,-500.0,0.00078296,120]
[319565843,1710866948125,-407.02135054,0.00078296,120]
[319565844,1710866948146,-500.0,0.00078296,120]
[319565845,1710866948168,-500.0,0.00078296,120]
[319565846,1710866948190,-500.0,0.00078296,120]
[319565847,1710866948211,-500.0,0.00078296,120]
[319565848,1710866948233,-500.0,0.00078296,120]
[319565849,1710866948255,-500.0,0.00078296,120]
[319565850,1710866948277,-500.0,0.00078296,120]
[319565851,1710866948300,-500.0,0.00078296,120]
[319565852,1710866948326,-334.82626143,0.00078296,120]
[319565853,1710866948347,-500.0,0.00078296,120]
[319565854,1710866948371,-500.0,0.00078296,120]
[319565855,1710866948394,-500.0,0.00078296,120]
[319565856,1710866948417,-500.0,0.00078296,120]
[319565857,1710866948438,-500.0,0.00078296,120]
[319565858,1710866948459,-500.0,0.00078296,120]
[319565859,1710866948482,-500.0,0.00078296,120]
[319565860,1710866948504,-500.0,0.00078296,120]
[319565861,1710866948525,-500.0,0.00078296,120]
[319565862,1710866948546,-500.0,0.00078296,120]
[319565863,1710866948571,-500.0,0.00078296,120]
[319565864,1710866948592,-500.0,0.00078296,120]
[319565865,1710866948615,-500.0,0.00078296,120]
[319565866,1710866948636,-500.0,0.00078296,120]
[319565867,1710866948658,-500.0,0.00078296,120]
[319565868,1710866948679,-500.0,0.00078296,120]
[319565869,1710866948700,-500.0,0.00078296,120]
[319565870,1710866948721,-500.0,0.00078296,120]
[319565871,1710866948741,-500.0,0.00078296,120]
[319565872,1710866948761,-500.0,0.00078296,120]
[319565873,1710866948783,-500.0,0.00078296,120]
[319565874,1710866948805,-500.0,0.00078296,120]
[319565875,1710866948826,-500.0,0.00078296,120]
[319565876,1710866948847,-500.0,0.00078296,120]
[319565877,1710866948868,-500.0,0.00078296,120]
[319565878,1710866948888,-500.0,0.00078296,120]
[319565879,1710866948908,-500.0,0.00078296,120]
[319565880,1710866948929,-500.0,0.00078296,120]
[319565881,1710866948950,-500.0,0.00078296,120]
[319565882,1710866948971,-500.0,0.00078296,120]
[319565883,1710866948994,-500.0,0.00078296,120]
[319565884,1710866949014,-500.0,0.00078296,120]
[319565885,1710866949036,-499.99999999,0.00078296,120]
[319565886,1710866949059,-179.4971122,0.00078296,7]
[319565887,1710866949081,-491.13559024,0.00078296,7]
[319565888,1710866949105,-17691.24619157,0.00078297,61]
[319565889,1710866949127,-500.0,0.00078297,120]
[319565890,1710866949150,-500.0,0.00078297,120]
[319565891,1710866949177,-500.0,0.00078297,120]
[319565892,1710866949199,-500.0,0.00078297,120]
[319565893,1710866949221,-500.0,0.00078297,120]
[319565894,1710866949242,-500.0,0.00078297,120]
[319565895,1710866949264,-500.0,0.00078297,120]
[319565896,1710866949285,-500.0,0.00078297,120]
[319565897,1710866949313,-500.0,0.00078297,120]
[319565898,1710866949334,-500.0,0.00078297,120]
[319565899,1710866949355,-500.0,0.00078297,120]
[319565900,1710866949377,-500.0,0.00078297,120]
[319565901,1710866949398,-500.0,0.00078297,120]
[319565902,1710866949419,-500.0,0.00078297,120]
[319565903,1710866949441,-500.0,0.00078297,120]
[319565904,1710866949461,-210.96397516,0.00078297,120]
[319565905,1710866949482,-500.0,0.00078297,120]
[319565906,1710866949589,-500.0,0.00078297,120]
[319565907,1710866949612,-500.0,0.00078297,120]
[319565908,1710866949634,-500.0,0.00078297,120]
[319565909,1710866949654,-500.0,0.00078297,120]
[319565910,1710866949676,-500.0,0.00078297,120]
[319565911,1710866949698,-500.0,0.00078297,120]
[319565912,1710866949719,-500.0,0.00078297,120]
[319565913,1710866949741,-500.0,0.00078297,120]
[319565914,1710866949763,-500.0,0.00078297,120]
[319565915,1710866949785,-500.0,0.00078297,120]
[319565916,1710866949807,-500.0,0.00078297,120]
[319565917,1710866949828,-493.83176614,0.00078297,120]
[319565918,1710866949849,-500.0,0.00078297,120]
[319565919,1710866949869,-500.0,0.00078297,120]
[319565920,1710866949889,-500.0,0.00078297,120]
[319565921,1710866949910,-500.0,0.00078297,120]
[319565922,1710866949931,-500.0,0.00078297,120]
[319565923,1710866949952,-461.83106744,0.00078297,120]
[319565924,1710866949972,-500.0,0.00078297,120]
[319565925,1710866949993,-500.0,0.00078297,120]
[319565926,1710866950014,-500.0,0.00078297,120]
[319565927,1710866950036,-500.0,0.00078297,120]
[319565928,1710866950060,-500.0,0.00078297,120]
[319565929,1710866950081,-500.0,0.00078297,120]
[319565930,1710866950101,-500.0,0.00078297,120]
[319565931,1710866950122,-500.0,0.00078297,120]
[319565932,1710866950143,-500.0,0.00078297,120]
[319565933,1710866950164,-500.0,0.00078297,120]
[319565934,1710866950185,-500.0,0.00078297,120]
[319565935,1710866950207,-500.0,0.00078297,120]
[319565936,1710866950227,-500.0,0.00078297,120]
[319565937,1710866950248,-500.0,0.00078297,120]
[319565938,1710866950274,-500.0,0.00078297,120]
[319565939,1710866950296,-500.0,0.00078297,120]
[319565940,1710866950321,-500.0,0.00078297,120]
[319565941,1710866950341,-500.0,0.00078297,120]
[319565942,1710866950363,-500.0,0.00078297,120]
[319565943,1710866950385,-500.0,0.00078297,120]
[319565944,1710866950406,-500.0,0.00078297,120]
[319565945,1710866950428,-500.0,0.00078297,120]
[319565946,1710866950449,-500.0,0.00078297,120]
[319565947,1710866950470,-500.0,0.00078297,120]
[319565948,1710866950491,-500.0,0.00078297,120]
[319565949,1710866950516,-500.0,0.00078297,120]
[319565950,1710866950537,-500.0,0.00078297,120]
[319565951,1710866950560,-500.0,0.00078297,120]
[319565952,1710866950582,-500.0,0.00078297,120]
[319565953,1710866950602,-500.0,0.00078297,120]
[319565954,1710866950624,-500.0,0.00078297,120]
[319565955,1710866950646,-500.0,0.00078297,120]
[319565956,1710866950666,-500.0,0.00078297,120]
[319565957,1710866950687,-500.0,0.00078297,120]
[319565958,1710866950707,-500.0,0.00078297,120]
[319565959,1710866950728,-500.0,0.00078297,120]
[319565960,1710866950748,-615.97553875,0.00078297,120]
[319565961,1710866950768,-500.0,0.00078297,120]
[319565962,1710866950789,-500.0,0.00078297,120]
[319565963,1710866950813,-500.0,0.00078297,120]
[319565964,1710866950835,-500.0,0.00078297,120]
[319565965,1710866950856,-500.0,0.00078297,120]
[319565966,1710866950878,-500.0,0.00078297,120]
[319565967,1710866950900,-500.0,0.00078297,120]
[319565968,1710866950921,-493.06107646,0.00078297,120]
[319565969,1710866950943,-500.0,0.00078297,120]
[319565970,1710866950964,-500.0,0.00078297,120]
[319565971,1710866950986,-500.0,0.00078297,120]
[319565972,1710866951007,-500.0,0.00078297,120]
[319565973,1710866951030,-500.0,0.00078297,120]
[319565974,1710866951051,-500.0,0.00078297,120]
[319565975,1710866951076,-500.0,0.00078297,120]
[319565976,1710866951096,-500.0,0.00078297,120]
[319565977,1710866951117,-500.0,0.00078297,120]
[319565978,1710866951138,-500.0,0.00078297,120]
[319565979,1710866951160,-500.0,0.00078297,120]
[319565980,1710866951181,-500.0,0.00078297,120]
[319565981,1710866951285,-500.0,0.00078297,120]
[319565982,1710866951313,-500.0,0.00078297,120]
[319565983,1710866951334,-174.02,0.00078297,30]
[319565984,1710866951356,-174.02,0.00078297,30]
[319565985,1710866951384,-174.02,0.00078297,30]
[319565986,1710866951406,-196007.03045806,0.00078298,2]
[319566065,1710867031994,-1196.38721552,0.00051269,4]
[319566067,1710867032004,-971.69203889,0.0005127,2]
[319566069,1710867032014,-1889.0033399,0.00076198,4]
[319566071,1710867032023,-666.16,0.00078,120]
[319566073,1710867032032,-151.45456969,0.00078141,34]
[319566075,1710867032042,-200.58211284,0.00078296,7]
[319566077,1710867032051,-202.76557058,0.00078296,7]
[319566079,1710867032060,-478.40079591,0.00078296,7]
[319566081,1710867032069,-176.38232131,0.00078297,7]
[319566083,1710867032078,-149.34455233,0.00078297,7]
[319566086,1710867032094,-304.54771008,0.00078297,7]
[319566088,1710867032103,-3196.06074308,0.00078298,2]
[319566089,1710867032115,-65812.47878312,0.00078298,2]
[319566090,1710867032142,-10984.43001574,0.00078298,2]
[319566091,1710867032151,-530.83095985,0.00078316,7]
[319566092,1710867032161,-302.32536436,0.00078393,7]
[319566093,1710867032171,-206.77036946,0.00078393,2]
[319566094,1710867032181,-400.0,0.00078394,2]
[319566095,1710867032191,-344.25335245,0.00078395,7]
[319566097,1710867032200,-349.69483131,0.00078395,7]
[319566099,1710867032210,-1259.57238447,0.00078395,7]
[319566101,1710867032219,-244.71264419,0.00078395,7]
[319566103,1710867032228,-384.91195482,0.00078395,7]
[319566105,1710867032238,-204.98847702,0.00078395,7]
[319566107,1710867032248,-1131.34587638,0.00078395,7]
[319566109,1710867032257,-239.91509419,0.00078395,7]
[319566111,1710867032266,-243.58567302,0.00078396,7]
[319566113,1710867032275,-1047.67794932,0.00078396,7]
[319566115,1710867032285,-235.48320031,0.00078396,7]
[319566116,1710867032294,-155.07739006,0.00078396,7]
[319566117,1710867032307,-250.9988996,0.00078397,7]
[319566118,1710867032316,-327.3386321,0.00078397,7]
[319566119,1710867032326,-409.37047238,0.00078397,7]
[319566120,1710867032336,-196.43542829,0.00078397,120]
[319566121,1710867032346,-281.21209698,0.00078397,7]
[319566122,1710867032355,-155.30149341,0.00078397,7]
[319566123,1710867032364,-326.65088458,0.00078397,7]
[319566124,1710867032377,-252.66589323,0.00078397,7]
[319566125,1710867032387,-253.85678197,0.00078397,2]
[319566126,1710867032397,-159.08593025,0.00078397,7]
[319566127,1710867032406,-280.18342036,0.00078397,7]
[319566128,1710867032416,-165.88019941,0.00078397,12]
[319566129,1710867032426,-270.70905219,0.00078397,7]
[319566131,1710867032435,-485.62338219,0.00078397,7]
[319566132,1710867032445,-215.62872372,0.00078397,7]
[319566134,1710867032454,-156.34472117,0.00078397,7]
[319566135,1710867032464,-1022.14993711,0.00078397,7]
[319566137,1710867032474,-155.14428418,0.00078398,7]
[319566139,1710867032483,-3501.36328965,0.00078398,7]
[319566141,1710867032492,-8845.62309579,0.00078399,61]
[319566143,1710867032501,-2222.37179404,0.00078399,7]
[319566145,1710867032510,-55593.5454144,0.00078399,7]
[319566146,1710867032519,-199.64185817,0.00079185,2]
[319566148,1710867032528,-500.0,0.0008,120]
[319566150,1710867032537,-199.64185817,0.00080154,2]
[319566152,1710867032546,-199.64185817,0.00081122,2]
[319566154,1710867032556,-1889.0033399,0.00081198,4]
[319566156,1710867032565,-20000.0,0.00082032,120]
[319566158,1710867032574,-1000.0,0.00082089,120]
[319566160,1710867032583,-199.64185817,0.00082091,2]
[319566163,1710867032593,-236.41458362,0.00082188,7]
[319566164,1710867032602,-633.99280875,0.00082188,7]
[319566166,1710867032612,-154.95351395,0.00082188,7]
[319566169,1710867032623,-198.14731074,0.00082189,7]
[319566171,1710867032632,-260.74871274,0.00082189,7]
[319566173,1710867032642,-310.31767229,0.00082189,7]
[319566175,1710867032651,-280.02709424,0.00082189,7]
[319566177,1710867032660,-155.90727247,0.00082189,7]
[319566179,1710867032670,-212.15239579,0.00082189,7]
[319566180,1710867032680,-312.13544662,0.00082189,7]
[319566183,1710867032690,-165.8465471,0.00082189,7]
[319566185,1710867032699,-162.46753871,0.00082189,7]
[319566186,1710867032708,-1000.0,0.00082189,7]
[319566188,1710867032718,-268.5783834,0.0008219,2]
[319566191,1710867032729,-156.10658839,0.0008219,7]
[319566192,1710867032738,-421.19780648,0.0008219,7]
[319566194,1710867032747,-5000.0,0.0008219,120]
[319566196,1710867032757,-5000.0,0.0008219,120]
[319566197,1710867032766,-250.42,0.0008219,120]
[319566199,1710867032775,-225.66899149,0.00082191,7]
[319566200,1710867032784,-155.49518954,0.00082191,7]
[319566202,1710867032794,-224.93559251,0.00082191,2]
[319566203,1710867032802,-200.2701776,0.00082191,7]
[319566204,1710867032811,-155.42308128,0.00082191,4]
[319566205,1710867032821,-500.0,0.00082191,120]
[319566206,1710867032830,-500.0,0.00082191,120]
[319566207,1710867032840,-500.0,0.00082191,120]
[319566208,1710867032849,-500.0,0.00082191,14]
[319566209,1710867032858,-500.0,0.00082191,120]
[319566210,1710867032868,-500.0,0.00082191,120]
[319566211,1710867032880,-500.0,0.00082191,120]
[319566212,1710867032889,-500.0,0.00082191,120]
[319566213,1710867032899,-500.0,0.00082191,120]
[319566214,1710867032909,-500.0,0.00082191,120]
[319566215,1710867032918,-500.0,0.00082191,120]
[319566216,1710867032927,-500.0,0.00082191,120]
[319566217,1710867032937,-500.0,0.00082191,120]
[319566218,1710867032948,-500.0,0.00082191,120]
[319566219,1710867032957,-500.0,0.00082191,120]
[319566220,1710867032966,-500.0,0.00082191,120]
[319566221,1710867032977,-500.0,0.00082191,120]
[319566222,1710867032987,-500.0,0.00082191,120]
[319566223,1710867032997,-500.0,0.00082191,120]
[319566224,1710867033006,-500.0,0.00082191,120]
[319566225,1710867033015,-500.0,0.00082191,120]
[319566226,1710867033025,-500.19436122,0.00082191,120]
[319566227,1710867033034,-453.02765514,0.00082191,120]
[319566228,1710867033044,-500.0,0.00082191,120]
[319566229,1710867033054,-500.0,0.00082191,120]
[319566230,1710867033064,-500.0,0.00082191,120]
[319566231,1710867033074,-500.0,0.00082191,120]
[319566232,1710867033085,-500.0,0.00082191,120]
[319566233,1710867033096,-500.0,0.00082191,120]
[319566234,1710867033106,-724.84,0.00082191,120]
[319566235,1710867033115,-500.0,0.00082191,120]
[319566236,1710867033127,-500.0,0.00082191,120]
[319566237,1710867033137,-993.17,0.00082191,120]
[319566238,1710867033146,-500.0,0.00082191,7]